bitfinex/quotes_SOLUSD_20260314
["timestamp","ask_amount","ask_price","bid_price","bid_amount"]
[1773464172796,0.47500064,88.309,88.271,7.22]
[1773464172992,0.47500064,88.309,88.27,3.63215084]
[1773464173211,0.47500064,88.309,88.26,3.63215084]
[1773464173515,0.47500064,88.307,88.26,3.63215084]
[1773464173703,39.63400823,88.308,88.26,3.63215084]
[1773464173704,0.47500064,88.299,88.261,0.49272486]
[1773464173900,0.47500064,88.299,88.26,3.63215084]
[1773464174115,0.47500064,88.299,88.254,11.33080971]
[1773464174301,0.47500064,88.299,88.26,3.63215084]
[1773464174501,0.47500064,88.299,88.254,11.33080971]
[1773464174705,0.47500064,88.299,88.255,0.49272486]
[1773464175700,0.47500064,88.297,88.255,0.49272486]
[1773464175899,0.47500064,88.297,88.26,3.63215084]
[1773464176596,0.14216157,88.296,88.223,0.49272486]
[1773464176795,0.47500064,88.259,88.221,0.49272486]
[1773464177405,0.47500064,88.249,88.21,3.63215084]
[1773464177619,0.47500064,88.249,88.22,3.63215084]
[1773464177828,0.47500064,88.247,88.221,0.49272486]
[1773464180348,11.33195838,88.246,88.223,0.49272486]
[1773464180549,0.47500064,88.245,88.223,0.49272486]
[1773464181446,0.46997145,88.258,88.223,0.49272486]
[1773464182333,0.46997145,88.256,88.223,0.49272486]
[1773464182641,0.46997145,88.249,88.218,0.48113012]
[1773464182943,0.46997145,88.249,88.221,0.48113012]
[1773464183443,0.46997145,88.256,88.221,0.48113012]
[1773464185442,0.46997145,88.249,88.221,0.48113012]
[1773464186731,11.33170156,88.248,88.221,0.48113012]
[1773464186930,0.46997145,88.247,88.221,0.48113012]
[1773464188833,11.33105956,88.253,88.221,0.48113012]
[1773464189034,11.33105956,88.253,88.222,0.48113012]
[1773464189259,11.33105956,88.253,88.231,0.48113012]
[1773464189760,0.46997145,88.264,88.241,0.48113012]
[1773464190534,0.46997145,88.263,88.241,0.48113012]
[1773464190943,11.32990414,88.262,88.241,0.48113012]
[1773464191633,0.46997145,88.261,88.241,0.48113012]
[1773464192661,11.80013233,88.26,88.241,0.48113012]
[1773464192861,11.33016088,88.26,88.241,0.48113012]
[1773464193236,0.46997145,88.259,88.23,4.11328096]
[1773464193454,0.46997145,88.259,88.231,0.48113012]
[1773464194841,11.80038908,88.258,88.231,0.48113012]
[1773464195058,0.46997145,88.257,88.231,0.48113012]
[1773464196564,11.33041763,88.258,88.233,0.48113012]
[1773464197163,11.33041763,88.258,88.232,11.33375646]
[1773464197164,0.46997145,88.259,88.227,0.48113012]
[1773464199959,0.46997145,88.257,88.219,0.48113012]
[1773464200170,0.46997145,88.249,88.219,0.48113012]
[1773464201169,0.46997145,88.249,88.221,0.48113012]
[1773464201467,0.46997145,88.257,88.221,0.48113012]
[1773464202172,0.46997145,88.255,88.223,0.48113012]
[1773464202569,11.3306744,88.256,88.223,0.48113012]
[1773464202776,7.22,88.26,88.241,0.48113012]
[1773464202980,11.33028926,88.259,88.241,0.48113012]
[1773464208358,0.46046946,88.258,88.241,0.48113012]
[1773464209574,11.33054601,88.257,88.241,0.48113012]
[1773464209881,0.46046946,88.256,88.231,0.48330566]
[1773464211562,11.33080278,88.255,88.232,0.4830118]
[1773464212683,0.48908444,88.255,88.232,0.4830118]
[1773464216180,11.33093117,88.254,88.232,0.4830118]
[1773464216678,0.48908444,88.253,88.232,0.4830118]
[1773464220568,0.48908444,88.251,88.232,0.4830118]
[1773464221878,0.48908444,88.255,88.232,0.4830118]
[1773464222080,0.48908444,88.255,88.234,0.4830118]
[1773464223974,11.33093117,88.254,88.234,0.4830118]
[1773464224287,0.48908444,88.253,88.216,0.4830118]
[1773464224595,0.48908444,88.253,88.221,0.4830118]
[1773464225891,0.48908444,88.249,88.205,0.4830118]
[1773464226092,3.64020355,88.24,88.2,0.1]
[1773464226394,0.48908444,88.239,88.2,3.74020355]
[1773464227287,0.48908444,88.239,88.201,0.4830118]
[1773464228191,0.48908444,88.237,88.201,0.4830118]
[1773464229285,0.48908444,88.235,88.201,0.4830118]
[1773464230280,0.48908444,88.235,88.2,0.1]
[1773464230480,0.48908444,88.229,88.2,0.1]
[1773464231292,0.48908444,88.227,88.2,0.1]
[1773464231876,0.48908444,88.226,88.2,0.1]
[1773464232277,11.3346557,88.225,88.2,0.1]
[1773464232493,0.48908444,88.224,88.2,0.1]
[1773464235092,39.67219432,88.223,88.2,0.1]
[1773464235302,0.48908444,88.222,88.2,0.1]
[1773464236984,11.33516963,88.221,88.2,0.1]
[1773464237198,0.48908444,88.22,88.2,0.1]
[1773464237408,0.48908444,88.22,88.2,0.5830118]
[1773464238097,0.48908444,88.22,88.2,4.22321535]
[1773464238406,0.48908444,88.22,88.201,0.4830118]
[1773464239487,0.48908444,88.218,88.201,0.4830118]
[1773464240510,11.3354266,88.219,88.201,0.4830118]
[1773464243794,0.479687,88.219,88.201,0.4830118]
[1773464245608,0.479687,88.219,88.2,3.64020355]
[1773464245810,0.479687,88.217,88.184,0.48747804]
[1773464248514,0.479687,88.215,88.184,0.48747804]
[1773464249116,0.479687,88.215,88.186,0.48747804]
[1773464250008,11.33581209,88.216,88.186,0.48747804]
[1773464250009,0.479687,88.213,88.186,0.48747804]
[1773464251517,0.479687,88.213,88.188,0.48747804]
[1773464252025,11.33632612,88.212,88.188,0.48747804]
[1773464252326,0.479687,88.211,88.188,0.48747804]
[1773464255021,11.33658315,88.21,88.188,0.48747804]
[1773464255208,0.479687,88.209,88.188,0.48747804]
[1773464256723,0.479687,88.22,88.191,0.48747804]
[1773464256931,0.479687,88.232,88.211,0.48747804]
[1773464257109,0.479687,88.232,88.212,0.48747804]
[1773464258011,0.479687,88.23,88.212,0.48747804]
[1773464259817,11.81382883,88.229,88.212,0.48747804]
[1773464260021,0.479687,88.228,88.212,0.48747804]
[1773464260216,0.479687,88.228,88.21,3.64020355]
[1773464261620,0.479687,88.228,88.21,3.64163042]
[1773464262233,11.33286189,88.239,88.211,0.48747804]
[1773464262441,0.479687,88.238,88.211,0.48747804]
[1773464264034,11.33311422,88.237,88.211,0.48747804]
[1773464264220,0.479687,88.236,88.212,11.33632612]
[1773464264824,0.479687,88.236,88.212,11.82380416]
[1773464265524,0.479687,88.236,88.213,0.48747804]
[1773464265722,0.479687,88.234,88.21,3.64163042]
[1773464266437,0.479687,88.234,88.207,0.48747804]
[1773464267120,0.48730062,88.232,88.207,0.48747804]
[1773464267830,0.48730062,88.232,88.205,0.49836759]
[1773464268145,0.48730062,88.232,88.196,0.49836759]
[1773464268312,0.48730062,88.229,88.191,11.83731709]
[1773464268516,0.48730062,88.229,88.192,0.49836759]
[1773464269138,0.48730062,88.227,88.192,0.49836759]
[1773464270738,0.48730062,88.225,88.192,0.49836759]
[1773464271140,0.49473567,88.219,88.187,0.4600331]
[1773464273243,0.49473567,88.217,88.191,0.4600331]
[1773464276136,0.49473567,88.215,88.191,0.4600331]
[1773464277222,11.3360691,88.214,88.191,0.4600331]
[1773464277529,0.49473567,88.213,88.191,0.4600331]
[1773464280043,0.49473567,88.211,88.191,0.4600331]
[1773464283037,0.49473567,88.225,88.201,0.4600331]
[1773464284648,0.49473567,88.225,88.203,0.4600331]
[1773464287651,0.49473567,88.225,88.204,11.33735431]
[1773464287856,0.49473567,88.24,88.211,0.4600331]
[1773464288036,0.49473567,88.24,88.204,39.68074009]
[1773464288037,0.49473567,88.24,88.22,4.10166352]
[1773464289441,0.49473567,88.24,88.221,0.4600331]
[1773464295744,0.49473567,88.238,88.221,0.4600331]
[1773464298641,0.49473567,88.236,88.213,0.4600331]
[1773464300137,0.49473567,88.236,88.215,0.4600331]
[1773464300342,0.49473567,88.234,88.215,0.4600331]
[1773464310249,0.47335278,88.232,88.201,0.47251594]
[1773464314357,0.47335278,88.229,88.191,0.47251594]
[1773464314978,0.47335278,88.229,88.192,0.47251594]
[1773464315453,0.47335278,88.219,88.192,0.47251594]
[1773464316967,0.47335278,88.217,88.193,11.33876838]
[1773464317162,0.47335278,88.217,88.187,0.47251594]
[1773464320980,0.47335278,88.215,88.187,0.47251594]
[1773464322288,0.47335278,88.215,88.18,4.33245916]
[1773464322289,0.47335278,88.215,88.191,0.47251594]
[1773464322679,0.47335278,88.219,88.191,0.47251594]
[1773464323393,0.47335278,88.219,88.193,0.47251594]
[1773464323973,0.47335278,88.217,88.193,0.47251594]
[1773464327789,28.33583836,88.228,88.193,0.47251594]
[1773464327790,0.48405606,88.215,88.193,0.47251594]
[1773464328790,0.48405606,88.215,88.188,0.47283902]
[1773464329285,0.48405606,88.215,88.183,0.47283902]
[1773464331390,0.45949307,88.213,88.183,0.47283902]
[1773464333081,11.33632612,88.212,88.183,0.47283902]
[1773464333388,0.45949307,88.211,88.183,0.47283902]
[1773464334492,0.45949307,88.22,88.201,0.46837279]
[1773464334689,0.45949307,88.218,88.201,0.46837279]
[1773464340588,0.45949307,88.216,88.193,0.46837279]
[1773464341891,0.45949307,88.216,88.201,0.46837279]
[1773464342091,0.45949307,88.231,88.201,0.46837279]
[1773464343294,0.45949307,88.229,88.202,11.80598418]
[1773464343777,0.45949307,88.229,88.203,0.46837279]
[1773464345179,0.45949307,88.229,88.205,0.46837279]
[1773464346398,0.45949307,88.227,88.205,0.46837279]
[1773464347593,11.33452723,88.226,88.205,0.46837279]
[1773464347798,0.45949307,88.225,88.205,0.46837279]
[1773464352406,0.45949307,88.223,88.205,0.46837279]
[1773464353287,0.45949307,88.235,88.207,0.46837279]
[1773464353605,0.45949307,88.235,88.211,0.46837279]
[1773464354396,11.33337111,88.235,88.211,0.46837279]
[1773464354593,0.45949307,88.232,88.211,0.46837279]
[1773464355811,0.45949307,88.232,88.2,3.64278608]
[1773464356104,0.45949307,88.232,88.201,11.33773993]
[1773464357086,11.33388491,88.231,88.201,11.33773993]
[1773464357291,11.33388491,88.231,88.21,3.64278608]
[1773464357507,0.45949307,88.23,88.21,3.64278608]
[1773464357808,0.45949307,88.23,88.21,3.92843768]
[1773464360308,0.45949307,88.228,88.21,3.92843768]
[1773464361414,0.48212578,88.226,88.185,0.2856516]
[1773464361615,0.48212578,88.226,88.191,0.2856516]
[1773464364713,0.48212578,88.224,88.201,0.2856516]
[1773464365628,0.48212578,88.224,88.192,11.33889695]
[1773464365629,0.48212578,88.229,88.211,0.2856516]
[1773464372712,0.48212578,88.238,88.213,0.2856516]
[1773464378221,0.48212578,88.238,88.215,0.2856516]
[1773464379310,0.48212578,88.238,88.217,0.2856516]
[1773464380524,0.48212578,88.236,88.213,0.2856516]
[1773464386527,0.49431411,88.234,88.213,0.2856516]
[1773464389126,0.49431411,88.234,88.214,11.3360691]
[1773464389332,0.49431411,88.234,88.214,11.6217207]
[1773464389726,0.49431411,88.232,88.21,14.97803532]
[1773464390527,0.49431411,88.232,88.21,15.26368692]
[1773464390748,0.49431411,88.232,88.212,11.33632612]
[1773464391625,0.48417674,88.23,88.212,11.33632612]
[1773464393416,0.48417674,88.23,88.212,11.62197772]
[1773464395033,0.48417674,88.23,88.215,0.2856516]
[1773464396236,0.48417674,88.23,88.214,11.3360691]
[1773464399130,0.48417674,88.23,88.214,11.6217207]
[1773464399338,0.48417674,88.247,88.221,0.2856516]
[1773464399651,0.48417674,88.247,88.231,0.2856516]
[1773464401224,0.48417674,88.247,88.228,11.33423205]
[1773464401740,0.48417674,88.246,88.224,11.62037996]
[1773464401937,0.48417674,88.246,88.225,0.2856516]
[1773464402156,0.48417674,88.25,88.231,0.2856516]
[1773464402445,0.48417674,88.262,88.231,0.2856516]
[1773464403019,0.48417674,88.26,88.233,0.2856516]
[1773464403520,0.48417674,88.275,88.251,0.2856516]
[1773464404337,0.5,88.259,88.22,3.64147875]
[1773464405153,0.5,88.257,88.221,11.33516963]
[1773464405353,0.5,88.257,88.23,3.64147875]
[1773464405650,11.32862062,88.272,88.241,0.49106507]
[1773464407227,11.32797897,88.277,88.241,0.49106507]
[1773464407423,0.48417674,88.276,88.241,0.49106507]
[1773464410249,7.22,88.278,88.241,0.49106507]
[1773464410250,39.64882468,88.275,88.241,0.49106507]
[1773464410439,39.64882468,88.275,88.215,7.22]
[1773464410440,0.48417674,88.269,88.222,0.49106507]
[1773464410649,39.64882468,88.275,88.22,3.64147875]
[1773464410650,0.48417674,88.259,88.22,14.97677483]
[1773464410944,0.48417674,88.259,88.221,0.49106507]
[1773464412954,0.48417674,88.257,88.222,11.33504114]
[1773464414731,11.3306744,88.256,88.222,11.33504114]
[1773464414959,0.48417674,88.255,88.222,11.33504114]
[1773464415534,0.48417674,88.255,88.223,0.49106507]
[1773464416942,0.48417674,88.255,88.225,0.49106507]
[1773464417140,0.48417674,88.253,88.23,3.64147875]
[1773464419760,0.48417674,88.251,88.231,0.49106507]
[1773464421554,0.48417674,88.251,88.232,0.45942793]
[1773464422053,0.48340913,88.249,88.232,0.45942793]
[1773464424357,0.48340913,88.247,88.232,0.45942793]
[1773464426465,0.48340913,88.247,88.23,3.64147875]
[1773464428264,0.48340913,88.252,88.231,0.45942793]
[1773464429566,0.48340913,88.252,88.23,3.64147875]
[1773464431466,0.48340913,88.25,88.232,0.45942793]
[1773464433569,0.48340913,88.254,88.232,0.45942793]
[1773464434968,0.48340913,88.254,88.23,3.64147875]
[1773464435162,0.48340913,88.254,88.23,4.10090668]
[1773464435569,0.48340913,88.252,88.222,0.45942793]
[1773464435770,0.48340913,88.252,88.23,3.64147875]
[1773464437267,0.48340913,88.25,88.231,0.45942793]
[1773464440658,18.55086608,88.255,88.241,0.45942793]
[1773464441660,7.22,88.255,88.241,0.45942793]
[1773464441861,11.33093117,88.254,88.241,0.45942793]
[1773464443374,0.48340913,88.253,88.234,0.45942793]
[1773464443557,0.48340913,88.253,88.24,3.64147875]
[1773464443876,0.48340913,88.253,88.221,0.45942793]
[1773464444079,0.48340913,88.253,88.23,3.64147875]
[1773464446083,0.48340913,88.251,88.213,0.45942793]
[1773464446283,0.48340913,88.251,88.22,4.10090668]
[1773464446486,0.48340913,88.251,88.23,3.64147875]
[1773464447658,0.48340913,88.251,88.23,3.64009027]
[1773464449871,0.47966212,88.249,88.225,0.48872905]
[1773464450072,0.47966212,88.249,88.23,3.64009027]
[1773464451480,11.33170156,88.248,88.23,3.64009027]
[1773464451666,0.46237776,88.247,88.23,3.64009027]
[1773464453374,11.79433614,88.246,88.23,3.64009027]
[1773464454285,0.46237776,88.245,88.23,3.64009027]
[1773464456194,0.46237776,88.243,88.201,11.33772231]
[1773464456382,0.46237776,88.239,88.203,0.46188088]
[1773464459271,0.46237776,88.237,88.21,3.64009027]
[1773464460472,0.46237776,88.235,88.21,3.64009027]
[1773464462489,0.46237776,88.233,88.21,3.64009027]
[1773464462672,0.46237776,88.233,88.206,1.53635878]
[1773464463073,0.46237776,88.233,88.206,1.0744779]
[1773464465094,11.33375646,88.232,88.206,1.0744779]
[1773464465299,0.46237776,88.231,88.206,1.0744779]
[1773464467403,0.46237776,88.229,88.206,1.0744779]
[1773464470497,0.46237776,88.227,88.206,1.0744779]
[1773464471482,0.46237776,88.225,88.193,0.46188088]
[1773464471801,0.46237776,88.219,88.182,0.46188088]
[1773464474201,0.46237776,88.217,88.182,0.46188088]
[1773464474403,0.46237776,88.215,88.182,0.46188088]
[1773464476382,0.46237776,88.213,88.182,0.46188088]
[1773464477597,0.46237776,88.213,88.18,4.33091901]
[1773464478708,0.46237776,88.211,88.18,4.79279989]
[1773464479603,0.46237776,88.209,88.18,1.15270962]
[1773464480712,0.46237776,88.207,88.181,0.46188088]
[1773464484316,11.33709724,88.206,88.181,0.46188088]
[1773464484520,0.45882238,88.205,88.181,0.46188088]
[1773464486018,0.45882238,88.205,88.18,0.69082874]
[1773464486315,0.45882238,88.197,88.18,0.69082874]
[1773464486525,0.45882238,88.195,88.18,0.69082874]
[1773464488322,0.45882238,88.193,88.18,0.69082874]
[1773464489330,11.33863981,88.194,88.182,0.4907062]
[1773464489825,11.33863981,88.194,88.18,0.69082874]
[1773464490123,11.33863981,88.194,88.181,0.4907062]
[1773464491826,7.22,88.196,88.181,0.4907062]
[1773464492826,18.5584564,88.196,88.181,0.4907062]
[1773464496323,0.45882238,88.195,88.18,0.69082874]
[1773464498408,0.4953531,88.193,88.17,3.74009027]
[1773464501217,0.4953531,88.191,88.17,3.74009027]
[1773464502325,0.4953531,88.189,88.17,3.74009027]
[1773464504137,11.33941125,88.188,88.17,3.74009027]
[1773464504323,0.4953531,88.187,88.17,3.74009027]
[1773464507631,0.4953531,88.187,88.17,3.74435763]
[1773464508136,0.4953531,88.187,88.18,3.64435763]
[1773464509536,7.22,88.196,88.18,3.64435763]
[1773464509537,11.33851125,88.195,88.18,3.64435763]
[1773464510442,0.4953531,88.194,88.17,3.74435763]
[1773464513424,0.4953531,88.194,88.171,11.34159757]
[1773464516251,0.4953531,88.194,88.18,3.64435763]
[1773464518242,0.4953531,88.194,88.17,3.74435763]
[1773464522947,0.4953531,88.226,88.19,3.64435763]
[1773464523130,0.4953531,88.226,88.2,3.64435763]
[1773464523441,0.4953531,88.226,88.21,3.64435763]
[1773464524953,11.82998077,88.226,88.21,3.64435763]
[1773464525132,11.33462767,88.226,88.21,3.64435763]
[1773464525327,0.4953531,88.225,88.21,3.64435763]
[1773464526832,0.4953531,88.23,88.21,3.64435763]
[1773464527228,0.4953531,88.23,88.19,11.33915409]
[1773464527454,0.4953531,88.23,88.2,3.64435763]
[1773464527649,0.4953531,88.23,88.2,3.64218257]
[1773464530864,7.22,88.232,88.2,3.64218257]
[1773464530865,0.4953531,88.228,88.2,3.64218257]
[1773464532364,0.4953531,88.226,88.201,11.33773993]
[1773464533962,0.4953531,88.226,88.2,3.64218257]
[1773464534340,0.4953531,88.224,88.2,3.64218257]
[1773464537365,11.83026576,88.223,88.2,3.64218257]
[1773464537564,11.33491266,88.223,88.201,11.33773993]
[1773464537945,11.33410452,88.23,88.21,3.64218257]
[1773464540375,11.33410452,88.23,88.22,3.64218257]
[1773464540543,11.33410452,88.23,88.21,3.64218257]
[1773464541153,11.33410452,88.23,88.22,3.64218257]
[1773464541475,11.33337111,88.235,88.21,3.64218257]
[1773464541673,11.82872421,88.235,88.21,3.64218257]
[1773464543175,0.4953531,88.234,88.21,3.64218257]
[1773464546472,0.4953531,88.229,88.171,39.69559151]
[1773464546663,0.4953531,88.229,88.19,3.64218257]
[1773464549399,0.4953531,88.227,88.2,3.64218257]
[1773464549690,0.4953531,88.227,88.19,3.64218257]
[1773464549894,0.4953531,88.227,88.2,3.64218257]
[1773464552493,0.4953531,88.225,88.2,3.64218257]
[1773464554490,11.33478418,88.224,88.201,11.33773993]
[1773464555608,11.83013728,88.224,88.201,11.33773993]
[1773464557089,0.4953531,88.223,88.201,11.33773993]
[1773464559715,0.4953531,88.223,88.21,3.64218257]
[1773464560807,11.33457989,88.226,88.21,3.64218257]
[1773464561592,11.82993299,88.226,88.21,3.64218257]
[1773464563109,7.22,88.24,88.211,0.49810472]
[1773464563294,11.33285735,88.239,88.211,0.49810472]
[1773464565209,0.49076947,88.238,88.211,0.49810472]
[1773464566200,0.49076947,88.238,88.192,28.34705832]
[1773464566201,3.64218257,88.27,88.23,3.64218257]
[1773464566535,0.14216157,88.269,88.23,4.11957242]
[1773464567209,39.79368135,88.269,88.23,4.11957242]
[1773464567415,39.79368135,88.269,88.231,0.47738985]
[1773464568109,0.46129814,88.266,88.231,0.47738985]
[1773464568407,0.46129814,88.258,88.231,0.47738985]
[1773464570322,39.65691105,88.257,88.231,0.47738985]
[1773464570500,0.46129814,88.256,88.231,0.47738985]
[1773464570700,0.46129814,88.256,88.22,3.63994743]
[1773464571013,0.46129814,88.256,88.202,28.34382183]
[1773464571014,0.46129814,88.256,88.23,3.63994743]
[1773464572713,0.4637326,88.254,88.23,3.63994743]
[1773464574999,0.4637326,88.252,88.23,3.63994743]
[1773464575402,0.4637326,88.252,88.203,0.4898677]
[1773464575620,0.4637326,88.252,88.22,4.12981513]
[1773464575812,0.4637326,88.252,88.221,0.4898677]
[1773464578007,0.4637326,88.25,88.221,0.4898677]
[1773464581318,0.4637326,88.248,88.231,0.4898677]
[1773464582129,0.4637326,88.248,88.227,0.4898677]
[1773464582433,0.4637326,88.248,88.23,3.63994743]
[1773464585332,0.4637326,88.246,88.227,0.4898677]
[1773464588427,0.4637326,88.244,88.227,0.4898677]
[1773464593623,0.4637326,88.244,88.23,3.63994743]
[1773464593828,0.4637326,88.244,88.227,0.4898677]
[1773464594949,0.4637326,88.244,88.23,3.63994743]
[1773464596427,0.4637326,88.242,88.223,0.4898677]
[1773464597959,0.4637326,88.242,88.23,3.63994743]
[1773464601439,0.46048324,88.246,88.23,4.12039518]
[1773464601645,0.46048324,88.246,88.23,3.63994743]
[1773464601847,11.33170156,88.248,88.231,0.48044775]
[1773464602248,11.33170156,88.248,88.23,3.63994743]
[1773464602249,7.22,88.249,88.241,0.48044775]
[1773464602543,0.46048324,88.258,88.24,3.63994743]
[1773464602737,0.46048324,88.258,88.241,0.48044775]
[1773464604347,0.46048324,88.264,88.243,0.48044775]
[1773464604548,0.46048324,88.263,88.245,0.48044775]
[1773464607248,0.46048324,88.263,88.25,4.12039518]
[1773464608155,0.46048324,88.263,88.25,3.63994743]
[1773464609549,11.32990414,88.262,88.246,0.48044775]
[1773464609749,0.46048324,88.261,88.241,0.48044775]
[1773464612653,0.46048324,88.259,88.241,0.48044775]
[1773464617465,0.46048324,88.264,88.251,0.48044775]
[1773464617641,0.46048324,88.264,88.243,0.48044775]
[1773464620861,3.63994743,88.26,88.22,3.63994743]
[1773464621164,0.46048324,88.259,88.216,0.48044775]
[1773464621363,0.46048324,88.249,88.216,0.48044775]
[1773464622038,0.46048324,88.249,88.211,11.81685169]
[1773464622243,0.46048324,88.249,88.212,0.48044775]
[1773464622755,3.63994743,88.23,88.2,0.48044775]
[1773464622983,0.46048324,88.228,88.19,4.12039518]
[1773464623183,0.46048324,88.228,88.19,0.48044775]
[1773464624980,0.46048324,88.226,88.19,4.12039518]
[1773464625185,0.46048324,88.226,88.191,0.48044775]
[1773464626891,0.46048324,88.226,88.201,0.47063871]
[1773464627596,0.46374874,88.224,88.201,0.47063871]
[1773464630595,0.46374874,88.222,88.201,0.47063871]
[1773464631502,0.48018555,88.239,88.211,0.490616]
[1773464631679,11.81309959,88.239,88.22,4.13304802]
[1773464631991,0.48018555,88.238,88.22,4.13304802]
[1773464632779,11.33311422,88.237,88.22,4.13304802]
[1773464633982,11.33311422,88.237,88.221,0.490616]
[1773464634882,0.48018555,88.243,88.221,0.490616]
[1773464636398,0.48018555,88.243,88.223,0.490616]
[1773464637589,0.48018555,88.248,88.223,0.490616]
[1773464638412,0.48018555,88.246,88.223,0.490616]
[1773464639582,0.48018555,88.244,88.223,0.490616]
[1773464640202,0.48018555,88.244,88.224,11.33478418]
[1773464640404,0.48018555,88.244,88.225,0.490616]
[1773464640913,0.48018555,88.244,88.224,11.33478418]
[1773464640914,0.48018555,88.256,88.231,0.490616]
[1773464641652,0.48018555,88.254,88.23,3.64243202]
[1773464641908,0.48018555,88.254,88.224,11.33478418]
[1773464643213,0.48018555,88.252,88.224,11.33478418]
[1773464643412,0.48018555,88.252,88.224,11.82540018]
[1773464645112,0.48018555,88.25,88.224,11.82540018]
[1773464646627,0.48018555,88.25,88.225,0.490616]
[1773464647127,0.48018555,88.25,88.227,0.490616]
[1773464647719,0.48018555,88.26,88.231,0.490616]
[1773464650124,0.48018555,88.26,88.232,11.33375646]
[1773464650331,0.48018555,88.26,88.233,0.490616]
[1773464651729,0.48018555,88.26,88.235,0.490616]
[1773464653026,11.3300279,88.262,88.235,0.490616]
[1773464653231,11.3300279,88.262,88.241,0.490616]
[1773464653442,0.48018555,88.265,88.241,0.490616]
[1773464654525,0.48018555,88.263,88.241,11.33250711]
[1773464654831,0.48018555,88.263,88.242,0.490616]
[1773464658215,0.48018555,88.263,88.243,11.33234364]
[1773464658415,0.48018555,88.263,88.244,0.490616]
[1773464660910,0.48018555,88.263,88.243,11.33234364]
[1773464660911,0.48018555,88.27,88.251,0.490616]
[1773464661110,0.4833062,88.281,88.251,0.490616]
[1773464661315,0.4833062,88.281,88.246,0.47868347]
[1773464661526,0.4833062,88.279,88.246,0.47868347]
[1773464661733,0.4833062,88.279,88.227,0.47868347]
[1773464661937,0.4833062,88.269,88.222,0.47868347]
[1773464662226,39.64568088,88.282,88.222,0.47868347]
[1773464662227,0.4833062,88.259,88.222,0.47868347]
[1773464662817,0.4833062,88.257,88.22,11.33526768]
[1773464663227,0.4833062,88.257,88.217,0.47868347]
[1773464663834,0.4833062,88.249,88.211,11.33643528]
[1773464664018,0.4833062,88.239,88.206,11.81567382]
[1773464665033,3.64243202,88.24,88.2,3.64243202]
[1773464665034,0.4833062,88.237,88.207,0.47868347]
[1773464667636,0.4833062,88.235,88.211,0.47868347]
[1773464669742,0.4833062,88.229,88.198,0.47868347]
[1773464670438,0.4833062,88.229,88.199,11.33799702]
[1773464670735,0.4833062,88.229,88.199,11.81668049]
[1773464671322,0.4833062,88.229,88.2,0.47868347]
[1773464672526,0.4833062,88.227,88.201,0.47868347]
[1773464675338,0.4833062,88.227,88.201,11.33773993]
[1773464675642,0.4833062,88.24,88.211,0.47868347]
[1773464676424,0.4833062,88.239,88.211,11.33634642]
[1773464676739,0.4833062,88.245,88.221,0.47868347]
[1773464678523,0.4833062,88.242,88.221,0.47868347]
[1773464679725,11.81590669,88.241,88.221,0.47868347]
[1773464680229,0.4833062,88.24,88.221,0.47868347]
[1773464688928,0.46049372,88.238,88.193,0.46361978]
[1773464689133,0.46049372,88.229,88.193,0.46361978]
[1773464690449,0.46049372,88.229,88.201,0.46361978]
[1773464691446,0.46049372,88.229,88.203,0.46148734]
[1773464691751,0.48495926,88.227,88.176,0.14216157]
[1773464691927,0.48495926,88.219,88.181,0.46148734]
[1773464692629,0.48495926,88.224,88.191,0.46148734]
[1773464692832,7.22,88.231,88.211,0.46148734]
[1773464693130,0.48495926,88.229,88.211,0.46148734]
[1773464694333,0.48495926,88.219,88.181,0.46148734]
[1773464694538,0.48495926,88.219,88.191,0.46148734]
[1773464695456,0.48495926,88.218,88.191,0.46148734]
[1773464695635,0.48495926,88.218,88.193,0.46148734]
[1773464697752,0.48495926,88.218,88.168,2.95506722]
[1773464697753,0.48495926,88.209,88.174,11.34111993]
[1773464697959,0.48495926,88.209,88.175,0.46148734]
[1773464698356,0.48495926,88.209,88.181,0.46148734]
[1773464700547,0.48495926,88.207,88.182,0.46148734]
[1773464701637,7.22,88.223,88.19,3.64095402]
[1773464701842,7.70495926,88.223,88.201,0.46148734]
[1773464702042,0.48495926,88.238,88.201,0.46148734]
[1773464702657,0.48495926,88.236,88.203,0.46148734]
[1773464705648,0.48495926,88.234,88.205,0.46148734]
[1773464709470,0.48495926,88.232,88.205,0.46148734]
[1773464713868,11.33388491,88.231,88.205,0.46148734]
[1773464714078,0.48495926,88.23,88.205,0.46148734]
[1773464715581,3.64095402,88.23,88.205,0.46148734]
[1773464715884,0.48495926,88.229,88.205,0.46148734]
[1773464717458,0.48495926,88.227,88.205,0.46148734]
[1773464719678,11.33452723,88.226,88.205,0.46148734]
[1773464719884,11.81948649,88.226,88.205,0.46148734]
[1773464720078,0.48495926,88.225,88.205,0.46148734]
[1773464724683,11.33478418,88.224,88.197,0.45702824]
[1773464724891,0.48773548,88.223,88.197,0.45702824]
[1773464725266,0.48773548,88.223,88.201,0.45702824]
[1773464728697,0.48773548,88.223,88.203,0.45702824]
[1773464731478,0.48773548,88.221,88.203,0.45702824]
[1773464731797,0.48773548,88.221,88.198,0.45702824]
[1773464737187,0.48773548,88.221,88.2,0.45702824]
[1773464737693,0.48773548,88.221,88.201,0.45702824]